[Event "44th Chess Olympiad Open 2022"]
[Site "Chennai"]
[Date "2022.08.07"]
[Round "9.58"]
[White "Rocha, Maximiliano"]
[Black "Liu, Yeh Yang"]
[Result "0-1"]
[WhiteElo "2117"]
[BlackElo "1994"]
[Annotator "RC"]
[PlyCount "146"]
[EventDate "2022.??.??"]
[TimeControl "60"]

1. e4 {[%emt 0:01:08]} c5 {[%emt 0:00:04]} 2. Nf3 {[%emt 0:00:09]} d6 {[%emt 0:
00:00]} 3. d4 {[%emt 0:02:10]} cxd4 {[%emt 0:00:04]} 4. Nxd4 {[%emt 0:00:04]}
Nf6 {[%emt 0:00:05]} 5. Nc3 {[%emt 0:00:10]} a6 {[%emt 0:00:09]} 6. Be3 {
[%emt 0:00:07]} Ng4 {[%emt 0:00:08]} 7. Bc1 {[%emt 0:03:12]} g6 {[%emt 0:01:59]
} 8. Be2 {[%emt 0:02:25]} Bg7 {[%emt 0:01:30]} 9. Bxg4 {[%emt 0:07:44]} Bxg4 {
[%emt 0:00:07]} 10. Qxg4 {[%emt 0:00:04]} Bxd4 {[%emt 0:00:05]} 11. Bh6 {
[%emt 0:00:03]} Qd7 {[%emt 0:04:24]} 12. Qf3 {[%emt 0:02:32]} Nc6 {[%emt 0:00:
00]} 13. Nd5 {[%emt 0:18:38]} Ne5 {[%emt 0:12:21]} 14. Qd1 {[%emt 0:08:20]}
Bxf2+ {[%emt 0:00:06]} 15. Kxf2 {[%emt 0:00:02]} Ng4+ {[%emt 0:00:04]} 16. Kg3
{[%emt 0:00:08]} Nxh6 {[%emt 0:00:05]} 17. Nb6 {[%emt 0:00:06]} Qc6 {[%emt 0:
00:00]} 18. Nxa8 {[%emt 0:00:49]} O-O {[%emt 0:00:19]} 19. Qd2 {[%emt 0:00:58]}
Kg7 {[%emt 0:01:27]} 20. Qd5 {[%emt 0:18:42]} Rxa8 {[%emt 0:04:31]} 21. Qxc6 {
[%emt 0:00:08]} bxc6 {[%emt 0:00:02]} 22. Kf3 {[%emt 0:00:16]} f6 {[%emt 0:00:
00]} 23. Rhe1 {[%emt 0:01:37]} Nf7 {[%emt 0:00:29]} 24. Re3 {[%emt 0:00:08]}
Ne5+ {[%emt 0:01:11]} 25. Ke2 {[%emt 0:00:07]} Kf7 {[%emt 0:03:26]} 26. Rb3 {
[%emt 0:00:57]} Ke6 {[%emt 0:00:11]} 27. a4 {[%emt 0:00:07]} a5 {[%emt 0:05:26]
} 28. Rb7 {[%emt 0:00:40]} Nd7 {[%emt 0:01:30]} 29. Ke3 {[%emt 0:06:15]} Nc5 {
[%emt 0:00:11]} 30. Rc7 {[%emt 0:00:08]} Ra6 {[%emt 0:00:06]} 31. b3 {[%emt 0:
00:00]} h5 {[%emt 0:02:35]} 32. Re1 {[%emt 0:00:59]} Nd7 {[%emt 0:06:22]} 33.
h3 {[%emt 0:05:05]} Ne5 {[%emt 0:03:32]} 34. Kd4 {[%emt 0:03:06]} Ra8 {[%emt 0:
00:00]} 35. Kc3 {[%emt 0:01:37]} c5 {[%emt 0:02:44]} 36. Ra1 {[%emt 0:01:36]}
Rb8 {[%emt 0:01:57]} 37. Re1 {[%emt 0:01:55]} h4 {[%emt 0:03:05]} 38. Re2 {
[%emt 0:00:56]} g5 {[%emt 0:01:32]} 39. Kb2 {[%emt 0:02:18]} Kf7 {[%emt 0:00:
00]} 40. Ka1 {[%emt 0:01:24]} Ke8 {[%emt 0:00:17]} 41. Rd2 {[%emt 0:30:27]} Ra8
{[%emt 0:33:44]} 42. Ka2 {[%emt 0:02:15]} Nd7 {[%emt 0:02:38]} 43. Rb7 {
[%emt 0:02:20]} Kd8 {[%emt 0:00:36]} 44. Rb5 {[%emt 0:00:07]} Kc7 {[%emt 0:00:
00]} 45. g3 {[%emt 0:00:09]} hxg3 {[%emt 0:01:27]} 46. Rg2 {[%emt 0:00:01]} Nf8
{[%emt 0:07:45]} 47. Rxg3 {[%emt 0:04:27]} Ne6 {[%emt 0:03:01]} 48. c3 {
[%emt 0:01:59]} Kc6 {[%emt 0:00:01]} 49. h4 {[%emt 0:04:35]} gxh4 {[%emt 0:00:
00]} 50. Rh3 {[%emt 0:00:00]} Rh8 {[%emt 0:01:16]} 51. Rxa5 {[%emt 0:00:08]}
Ng5 {[%emt 0:00:03]} 52. Rh2 {[%emt 0:01:05]} h3 {[%emt 0:00:22]} 53. Ra7 {
[%emt 0:00:19]} Rh7 {[%emt 0:01:30]} 54. b4 {[%emt 0:00:53]} Nxe4 {[%emt 0:00:
00]} 55. Kb3 {[%emt 0:00:00]} f5 {[%emt 0:00:00]} 56. b5+ {[%emt 0:00:00]} Kb6
{[%emt 0:00:00]} 57. Ra8 {[%emt 0:00:00]} f4 {[%emt 0:00:00]} 58. Kc4 {[%emt 0:
00:00]} f3 {[%emt 0:00:00]} 59. a5+ {[%emt 0:00:00]} Kb7 {[%emt 0:00:00]} 60.
Rf8 {[%emt 0:00:00]} f2 {[%emt 0:00:00]} 61. b6 {[%emt 0:03:20]} Rh5 {[%emt 0:
00:00]} 62. Rf7 {[%emt 0:00:47]} d5+ {[%emt 0:00:02]} 63. Kd3 {[%emt 0:00:28]}
Ka6 {[%emt 0:01:32]} 64. c4 {[%emt 0:00:32]} Rh4 {[%emt 0:02:29]} 65. cxd5 {
[%emt 0:00:20]} c4+ {[%emt 0:00:01]} 66. Ke2 {[%emt 0:00:05]} c3 {[%emt 0:00:
00]} 67. Rxe7 {[%emt 0:00:15]} Rf4 {[%emt 0:01:13]} 68. Ra7+ {[%emt 0:01:12]}
Kb5 {[%emt 0:00:04]} 69. Rxf2 {[%emt 0:00:01]} Rxf2+ {[%emt 0:00:07]} 70. Ke3 {
[%emt 0:00:01]} c2 {[%emt 0:00:18]} 71. Rc7 {[%emt 0:01:32]} Nc5 {[%emt 0:00:
00]} 72. b7 {[%emt 0:00:33]} c1=Q+ {[%emt 0:00:05]} 73. Kxf2 {[%emt 0:00:12]}
Qf4+ {[%emt 0:00:05]} 0-1

[Event "44th Chess Olympiad Open 2022"]
[Site "Chennai"]
[Date "2022.08.07"]
[Round "9.58"]
[White "Espinoza Solano, Jose Nahum"]
[Black "Wu, Bing-Shen"]
[Result "1-0"]
[WhiteElo "2093"]
[BlackElo "1660"]
[Annotator "NA RC"]
[PlyCount "91"]
[EventDate "2022.??.??"]
[TimeControl "60"]

1. e4 {[%emt 0:00:09]} d6 {[%emt 0:00:16]} 2. d4 {[%emt 0:00:59]} Nf6 {[%emt 0:
00:00]} 3. Nc3 {[%emt 0:00:15]} g6 {[%emt 0:00:14]} 4. Be3 {[%emt 0:00:09]} Bg7
{[%emt 0:00:11]} 5. Qd2 {[%emt 0:00:04]} O-O {[%emt 0:00:12]} 6. f3 {[%emt 0:
00:00]} e5 {[%emt 0:00:32]} 7. Nge2 {[%emt 0:01:29]} exd4 {[%emt 0:00:35]} 8.
Bxd4 {[%emt 0:02:18]} Nc6 {[%emt 0:02:16]} 9. Be3 {[%emt 0:00:15]} Be6 {
[%emt 0:07:33]} 10. O-O-O {[%emt 0:01:24]} b5 {[%emt 0:11:51]} 11. Nf4 {
[%emt 0:05:36]} b4 {[%emt 0:04:14]} 12. Ncd5 {[%emt 0:00:28]} a5 {[%emt 0:00:
00]} 13. Nxe6 {[%emt 0:03:09]} fxe6 {[%emt 0:00:10]} 14. Nf4 {[%emt 0:00:41]}
Qc8 {[%emt 0:16:36]} 15. h4 {[%emt 0:04:56]} Ne5 {[%emt 0:13:27]} 16. h5 {
[%emt 0:01:29]} Qe8 {[%emt 0:08:36]} 17. hxg6 {[%emt 0:01:39]} hxg6 {[%emt 0:
00:00]} 18. Nh3 {[%emt 0:06:18]} Nh5 {[%emt 0:02:41]} 19. Qe1 {[%emt 0:15:06]}
Qc6 {[%emt 0:04:23]} 20. Ng5 {[%emt 0:03:24]} b3 {[%emt 0:03:00]} 21. axb3 {
[%emt 0:01:52]} a4 {[%emt 0:00:08]} 22. Qc3 {[%emt 0:02:13]} a3 {[%emt 0:01:34]
} 23. Qxc6 {[%emt 0:02:30]} axb2+ {[%emt 0:00:46]} 24. Kd2 {[%emt 0:00:55]}
Nxc6 {[%emt 0:00:12]} 25. Nxe6 {[%emt 0:01:28]} Ng3 {[%emt 0:08:50]} 26. Rg1 {
[%emt 0:00:12]} Ra1 {[%emt 0:02:03]} 27. Bc4 {[%emt 0:00:21]} Ne5 {[%emt 0:00:
00]} 28. Nxf8+ {[%emt 0:00:49]} Nxc4+ {[%emt 0:00:07]} 29. bxc4 {[%emt 0:00:03]
} Ra3 {[%emt 0:00:30]} 30. c3 {[%emt 0:01:36]} Bxc3+ {[%emt 0:00:46]} 31. Kc2 {
[%emt 0:00:13]} Kxf8 {[%emt 0:00:16]} 32. Rd3 {[%emt 0:07:43]} Ne2 {[%emt 0:00:
00]} 33. Rb1 {[%emt 0:01:18]} Ra1 {[%emt 0:00:58]} 34. Rxc3 {[%emt 0:01:31]}
Rxb1 {[%emt 0:00:44]} 35. Bh6+ {[%emt 0:00:23]} Kf7 {[%emt 0:00:53]} 36. Kxb1 {
[%emt 0:00:05]} Nxc3+ {[%emt 0:00:07]} 37. Kxb2 {[%emt 0:00:01]} Na4+ {[%emt 0:
00:00]} 38. Kc2 {[%emt 0:00:16]} Ke6 {[%emt 0:00:45]} 39. Be3 {[%emt 0:00:16]}
c5 {[%emt 0:01:24]} 40. Bd2 {[%emt 0:01:15]} Ke5 {[%emt 0:00:17]} 41. Ba5 {
[%emt 0:30:11]} Kf4 {[%emt 0:03:49]} 42. Kb3 {[%emt 0:00:00]} Kg3 {[%emt 0:00:
00]} 43. Kxa4 {[%emt 0:00:00]} g5 {[%emt 0:00:39]} 44. Bc7 {[%emt 0:00:00]}
Kxg2 {[%emt 0:00:19]} 45. Bxd6 {[%emt 0:00:00]} Kxf3 {[%emt 0:00:11]} 46. e5 {
[%emt 0:00:00]} 1-0

[Event "44th Chess Olympiad Open 2022"]
[Site "Chennai"]
[Date "2022.08.07"]
[Round "9.58"]
[White "Hsu, Hsuan-Ming"]
[Black "Salazar Cabezas, Alberto Javier"]
[Result "0-1"]
[WhiteElo "1900"]
[BlackElo "2155"]
[Annotator "RC"]
[PlyCount "148"]
[EventDate "2022.??.??"]
[TimeControl "60"]

1. e4 {[%emt 0:00:04]} c5 {[%emt 0:00:16]} 2. c3 {[%emt 0:00:30]} d5 {[%emt 0:
00:00]} 3. exd5 {[%emt 0:00:05]} Qxd5 {[%emt 0:00:05]} 4. d4 {[%emt 0:00:19]}
Nc6 {[%emt 0:00:09]} 5. Nf3 {[%emt 0:00:09]} Bf5 {[%emt 0:00:10]} 6. dxc5 {
[%emt 0:15:10]} Qxd1+ {[%emt 0:00:07]} 7. Kxd1 {[%emt 0:00:09]} O-O-O+ {
[%emt 0:00:08]} 8. Nbd2 {[%emt 0:00:24]} e5 {[%emt 0:00:39]} 9. b4 {[%emt 0:00:
00]} Be7 {[%emt 0:11:32]} 10. Ke1 {[%emt 0:32:49]} Bf6 {[%emt 0:00:48]} 11. Nb3
{[%emt 0:05:45]} e4 {[%emt 0:20:34]} 12. Nfd4 {[%emt 0:03:17]} Nge7 {[%emt 0:
00:00]} 13. Be3 {[%emt 0:05:37]} Bg6 {[%emt 0:08:03]} 14. Bc4 {[%emt 0:11:43]}
Nd5 {[%emt 0:05:13]} 15. Bxd5 {[%emt 0:00:07]} Rxd5 {[%emt 0:00:08]} 16. Nxc6 {
[%emt 0:11:49]} Bxc3+ {[%emt 0:00:32]} 17. Bd2 {[%emt 0:00:04]} Bxd2+ {[%emt 0:
00:00]} 18. Nxd2 {[%emt 0:00:10]} bxc6 {[%emt 0:00:07]} 19. Nc4 {[%emt 0:00:43]
} Rd4 {[%emt 0:05:01]} 20. Rc1 {[%emt 0:02:58]} Kc7 {[%emt 0:02:27]} 21. a3 {
[%emt 0:00:33]} Rd3 {[%emt 0:09:48]} 22. h4 {[%emt 0:01:02]} Rhd8 {[%emt 0:00:
00]} 23. h5 {[%emt 0:00:05]} Bf5 {[%emt 0:00:23]} 24. Nd6 {[%emt 0:00:04]} Bg4
{[%emt 0:00:26]} 25. Ra1 {[%emt 0:01:14]} h6 {[%emt 0:11:26]} 26. Kf1 {[%emt 0:
00:00]} R8xd6 {[%emt 0:00:49]} 27. cxd6+ {[%emt 0:00:09]} Kxd6 {[%emt 0:00:01]}
28. Kg1 {[%emt 0:01:56]} Rd5 {[%emt 0:02:53]} 29. Kh2 {[%emt 0:00:33]} Bxh5 {
[%emt 0:01:22]} 30. Rhe1 {[%emt 0:00:44]} f5 {[%emt 0:00:18]} 31. a4 {[%emt 0:
00:00]} Rd2 {[%emt 0:03:53]} 32. Kg1 {[%emt 0:00:36]} a6 {[%emt 0:01:02]} 33.
Reb1 {[%emt 0:00:40]} Be2 {[%emt 0:00:22]} 34. b5 {[%emt 0:00:19]} cxb5 {
[%emt 0:00:10]} 35. axb5 {[%emt 0:00:06]} Bxb5 {[%emt 0:00:11]} 36. Rc1 {
[%emt 0:00:59]} f4 {[%emt 0:03:20]} 37. Rc8 {[%emt 0:00:09]} Ke7 {[%emt 0:00:
00]} 38. Re1 {[%emt 0:00:42]} Rd4 {[%emt 0:00:13]} 39. Rc7+ {[%emt 0:00:25]}
Kf6 {[%emt 0:00:11]} 40. Ra7 {[%emt 0:00:06]} g6 {[%emt 0:04:47]} 41. Rb7 {
[%emt 0:04:38]} h5 {[%emt 0:01:49]} 42. Rb6+ {[%emt 0:04:31]} Kg5 {[%emt 0:00:
00]} 43. Re6 {[%emt 0:03:25]} Kf5 {[%emt 0:00:22]} 44. Rb6 {[%emt 0:00:47]} Rd5
{[%emt 0:00:31]} 45. Kh2 {[%emt 0:12:41]} Re5 {[%emt 0:10:25]} 46. g3 {[%emt 0:
00:00]} g5 {[%emt 0:00:04]} 47. gxf4 {[%emt 0:05:54]} gxf4 {[%emt 0:00:55]} 48.
Rh6 {[%emt 0:00:37]} Kg4 {[%emt 0:01:53]} 49. Kg2 {[%emt 0:00:28]} Bd3 {
[%emt 0:11:21]} 50. Rg6+ {[%emt 0:01:24]} Rg5 {[%emt 0:01:31]} 51. Rxg5+ {
[%emt 0:00:20]} Kxg5 {[%emt 0:00:00]} 52. Rc1 {[%emt 0:00:48]} Kf6 {[%emt 0:00:
00]} 53. Rc5 {[%emt 0:00:43]} Be2 {[%emt 0:00:37]} 54. Rc6+ {[%emt 0:00:41]}
Ke5 {[%emt 0:00:10]} 55. Rc8 {[%emt 0:00:17]} Kd4 {[%emt 0:00:52]} 56. Rf8 {
[%emt 0:00:27]} a5 {[%emt 0:01:41]} 57. Ra8 {[%emt 0:00:25]} Bf3+ {[%emt 0:00:
00]} 58. Kf1 {[%emt 0:00:27]} h4 {[%emt 0:01:49]} 59. Rxa5 {[%emt 0:00:09]} h3
{[%emt 0:00:06]} 60. Kg1 {[%emt 0:00:24]} e3 {[%emt 0:01:35]} 61. fxe3+ {
[%emt 0:00:18]} fxe3 {[%emt 0:00:32]} 62. Ra4+ {[%emt 0:00:46]} Kd3 {[%emt 0:
00:00]} 63. Ra3+ {[%emt 0:00:20]} Ke4 {[%emt 0:00:15]} 64. Ra4+ {[%emt 0:00:12]
} Kd3 {[%emt 0:00:45]} 65. Ra3+ {[%emt 0:00:08]} Kd2 {[%emt 0:00:28]} 66. Kh2 {
[%emt 0:01:13]} Bg2 {[%emt 0:01:04]} 67. Ra2+ {[%emt 0:00:04]} Ke1 {[%emt 0:00:
00]} 68. Kg1 {[%emt 0:01:00]} e2 {[%emt 0:00:40]} 69. Ra1+ {[%emt 0:00:06]} Kd2
{[%emt 0:00:04]} 70. Ra2+ {[%emt 0:00:05]} Ke3 {[%emt 0:00:13]} 71. Ra3+ {
[%emt 0:00:15]} Kf4 {[%emt 0:00:08]} 72. Kf2 {[%emt 0:02:04]} e1=Q+ {[%emt 0:
00:00]} 73. Kxe1 {[%emt 0:00:04]} h2 {[%emt 0:00:01]} 74. Ra4+ {[%emt 0:00:50]}
Be4 {[%emt 0:00:01]} 0-1

[Event "44th Chess Olympiad Open 2022"]
[Site "Chennai"]
[Date "2022.08.07"]
[Round "9.58"]
[White "Yan, Austin K"]
[Black "Alfaro, William"]
[Result "1-0"]
[WhiteElo "1568"]
[BlackElo "2155"]
[Annotator "RC"]
[PlyCount "45"]
[EventDate "2022.??.??"]
[TimeControl "60"]

1. e4 {[%emt 0:00:20]} c5 {[%emt 0:00:33]} 2. Nf3 {[%emt 0:00:08]} Nc6 {
[%emt 0:00:05]} 3. d4 {[%emt 0:00:29]} cxd4 {[%emt 0:00:11]} 4. Nxd4 {[%emt 0:
00:00]} g6 {[%emt 0:00:05]} 5. c4 {[%emt 0:01:38]} Bg7 {[%emt 0:00:05]} 6. Be3
{[%emt 0:00:07]} Nf6 {[%emt 0:00:07]} 7. Nc3 {[%emt 0:00:04]} O-O {[%emt 0:00:
00]} 8. Be2 {[%emt 0:01:49]} d6 {[%emt 0:00:08]} 9. f3 {[%emt 0:00:36]} Bd7 {
[%emt 0:02:01]} 10. Qd2 {[%emt 0:03:31]} Nxd4 {[%emt 0:16:33]} 11. Bxd4 {
[%emt 0:00:07]} Bc6 {[%emt 0:00:02]} 12. h4 {[%emt 0:10:55]} e6 {[%emt 0:01:18]
} 13. O-O-O {[%emt 0:06:05]} a6 {[%emt 0:05:03]} 14. g4 {[%emt 0:10:03]} Qa5 {
[%emt 0:13:14]} 15. Kb1 {[%emt 0:12:01]} Rfd8 {[%emt 0:08:52]} 16. h5 {[%emt 0:
00:00]} b5 {[%emt 0:03:18]} 17. h6 {[%emt 0:04:07]} e5 {[%emt 0:06:52]} 18.
hxg7 {[%emt 0:02:49]} b4 {[%emt 0:00:15]} 19. Nd5 {[%emt 0:01:04]} Bxd5 {
[%emt 0:03:09]} 20. cxd5 {[%emt 0:01:59]} exd4 {[%emt 0:00:06]} 21. Qxd4 {
[%emt 0:00:27]} Rdc8 {[%emt 0:12:39]} 22. Qxf6 {[%emt 0:01:33]} Qc5 {[%emt 0:
00:00]} 23. Bd3 {[%emt 0:01:05]} 1-0

[Event "44th Chess Olympiad Open 2022"]
[Site "Chennai"]
[Date "2022.08.07"]
[Round "9.59"]
[White "Rehan, Deng Cypriano"]
[Black "Namale, Ben Nguku"]
[Result "1/2-1/2"]
[WhiteElo "2105"]
[BlackElo "1962"]
[Annotator "RC"]
[PlyCount "140"]
[EventDate "2022.??.??"]
[TimeControl "60"]

1. d4 {[%emt 0:00:05]} d5 {[%emt 0:00:08]} 2. Bf4 {[%emt 0:00:26]} Nf6 {
[%emt 0:00:11]} 3. e3 {[%emt 0:00:16]} c5 {[%emt 0:00:08]} 4. c3 {[%emt 0:00:
00]} Nc6 {[%emt 0:00:46]} 5. Nd2 {[%emt 0:00:16]} cxd4 {[%emt 0:00:04]} 6. cxd4
{[%emt 0:00:24]} Qb6 {[%emt 0:04:34]} 7. Qb3 {[%emt 0:07:01]} Qxb3 {[%emt 0:00:
00]} 8. Nxb3 {[%emt 0:00:28]} e6 {[%emt 0:00:01]} 9. a3 {[%emt 0:00:25]} Nh5 {
[%emt 0:09:34]} 10. Bg3 {[%emt 0:02:00]} Nxg3 {[%emt 0:02:21]} 11. hxg3 {
[%emt 0:00:13]} b6 {[%emt 0:01:12]} 12. Rc1 {[%emt 0:00:47]} Bd7 {[%emt 0:00:
00]} 13. f4 {[%emt 0:00:56]} a5 {[%emt 0:00:32]} 14. Bb5 {[%emt 0:00:47]} Na7 {
[%emt 0:03:02]} 15. Bxd7+ {[%emt 0:01:12]} Kxd7 {[%emt 0:00:02]} 16. Nf3 {
[%emt 0:00:14]} f6 {[%emt 0:00:18]} 17. g4 {[%emt 0:00:25]} Rc8 {[%emt 0:02:49]
} 18. g5 {[%emt 0:01:41]} a4 {[%emt 0:00:49]} 19. Rxc8 {[%emt 0:00:51]} Nxc8 {
[%emt 0:00:00]} 20. Nc1 {[%emt 0:01:16]} Nd6 {[%emt 0:00:16]} 21. Nd3 {[%emt 0:
00:00]} Nc4 {[%emt 0:02:53]} 22. Ke2 {[%emt 0:01:02]} Bd6 {[%emt 0:03:14]} 23.
g6 {[%emt 0:02:42]} h6 {[%emt 0:00:34]} 24. g4 {[%emt 0:01:00]} Rc8 {[%emt 0:
00:00]} 25. g5 {[%emt 0:03:17]} hxg5 {[%emt 0:03:22]} 26. fxg5 {[%emt 0:04:00]}
e5 {[%emt 0:13:23]} 27. gxf6 {[%emt 0:03:57]} gxf6 {[%emt 0:01:06]} 28. dxe5 {
[%emt 0:08:04]} fxe5 {[%emt 0:02:29]} 29. Ng5 {[%emt 0:01:23]} Rg8 {[%emt 0:00:
00]} 30. Rh6 {[%emt 0:09:45]} Be7 {[%emt 0:00:00]} 31. Nf7 {[%emt 0:08:12]} Ke6
{[%emt 0:02:15]} 32. Nfxe5 {[%emt 0:06:00]} Nxe5 {[%emt 0:04:12]} 33. g7+ {
[%emt 0:00:45]} Bf6 {[%emt 0:09:56]} 34. Nf4+ {[%emt 0:00:20]} Kf7 {[%emt 0:00:
00]} 35. Nxd5 {[%emt 0:01:39]} Nd7 {[%emt 0:05:14]} 36. Nxf6 {[%emt 0:00:48]}
Nxf6 {[%emt 0:00:05]} 37. Rh4 {[%emt 0:00:37]} b5 {[%emt 0:01:15]} 38. Rb4 {
[%emt 0:01:40]} Rb8 {[%emt 0:00:23]} 39. e4 {[%emt 0:00:40]} Nd7 {[%emt 0:00:
00]} 40. b3 {[%emt 0:00:39]} axb3 {[%emt 0:00:42]} 41. Rxb3 {[%emt 0:30:12]}
Kxg7 {[%emt 0:30:40]} 42. Ke3 {[%emt 0:01:06]} Nc5 {[%emt 0:00:49]} 43. Rc3 {
[%emt 0:00:43]} Ne6 {[%emt 0:00:00]} 44. e5 {[%emt 0:00:00]} Kg6 {[%emt 0:00:
00]} 45. Ke4 {[%emt 0:00:00]} Ng5+ {[%emt 0:00:00]} 46. Kf4 {[%emt 0:00:00]}
Rf8+ {[%emt 0:00:00]} 47. Kg4 {[%emt 0:00:00]} Ne6 {[%emt 0:00:00]} 48. Rc6 {
[%emt 0:00:00]} Rf4+ {[%emt 0:00:00]} 49. Kg3 {[%emt 0:00:00]} Kf5 {[%emt 0:00:
00]} 50. Rb6 {[%emt 0:00:00]} Nd4 {[%emt 0:00:00]} 51. e6 {[%emt 0:00:00]} Rf3+
{[%emt 0:00:00]} 52. Kg2 {[%emt 0:00:00]} Rxa3 {[%emt 0:02:26]} 53. e7 {
[%emt 0:00:00]} Re3 {[%emt 0:00:48]} 54. Rd6 {[%emt 0:00:00]} Rxe7 {[%emt 0:00:
00]} 55. Rxd4 {[%emt 0:00:00]} Ke5 {[%emt 0:00:59]} 56. Rd8 {[%emt 0:00:00]}
Ke4 {[%emt 0:01:00]} 57. Kf2 {[%emt 0:00:00]} Re5 {[%emt 0:00:44]} 58. Ke2 {
[%emt 0:00:00]} Rh5 {[%emt 0:01:40]} 59. Kd2 {[%emt 0:00:00]} Rc5 {[%emt 0:00:
00]} 60. Re8+ {[%emt 0:00:00]} Kd4 {[%emt 0:00:21]} 61. Rd8+ {[%emt 0:00:00]}
Kc4 {[%emt 0:00:25]} 62. Kc2 {[%emt 0:00:00]} Rh5 {[%emt 0:00:09]} 63. Rd2 {
[%emt 0:00:00]} Rh3 {[%emt 0:00:07]} 64. Rg2 {[%emt 0:00:00]} Kb4 {[%emt 0:00:
00]} 65. Kb2 {[%emt 0:00:00]} Ka4 {[%emt 0:00:07]} 66. Rg4+ {[%emt 0:00:00]} b4
{[%emt 0:00:14]} 67. Rg2 {[%emt 0:00:00]} Rd3 {[%emt 0:00:30]} 68. Rh2 {
[%emt 0:00:00]} Rd4 {[%emt 0:00:23]} 69. Rg2 {[%emt 0:00:00]} Kb5 {[%emt 0:00:
00]} 70. Rh2 {[%emt 0:00:07]} Ka4 {[%emt 0:01:34]} 1/2-1/2

[Event "44th Chess Olympiad Open 2022"]
[Site "Chennai"]
[Date "2022.08.07"]
[Round "9.59"]
[White "Peter Majur Manyang"]
[Black "Mukoko, Isaac"]
[Result "1-0"]
[WhiteElo "2095"]
[BlackElo "1805"]
[Annotator "NA RC"]
[PlyCount "57"]
[EventDate "2022.??.??"]
[TimeControl "60"]

1. e4 {[%emt 0:00:07]} c5 {[%emt 0:00:12]} 2. Nf3 {[%emt 0:00:10]} d6 {[%emt 0:
00:00]} 3. d4 {[%emt 0:00:22]} cxd4 {[%emt 0:00:09]} 4. Nxd4 {[%emt 0:00:09]}
Nf6 {[%emt 0:00:23]} 5. Nc3 {[%emt 0:00:37]} a6 {[%emt 0:00:12]} 6. Bg5 {
[%emt 0:03:13]} e6 {[%emt 0:01:38]} 7. Qf3 {[%emt 0:02:22]} Be7 {[%emt 0:01:03]
} 8. O-O-O {[%emt 0:00:04]} Qc7 {[%emt 0:04:24]} 9. Bd3 {[%emt 0:06:11]} Nbd7 {
[%emt 0:04:16]} 10. Qe2 {[%emt 0:01:46]} b5 {[%emt 0:03:26]} 11. f4 {[%emt 0:
00:00]} Bb7 {[%emt 0:01:56]} 12. Bxf6 {[%emt 0:04:39]} Nxf6 {[%emt 0:02:12]}
13. e5 {[%emt 0:00:50]} dxe5 {[%emt 0:09:13]} 14. fxe5 {[%emt 0:00:32]} Nd7 {
[%emt 0:00:23]} 15. Rhe1 {[%emt 0:05:34]} Bb4 {[%emt 0:03:19]} 16. Qg4 {
[%emt 0:01:55]} Bxc3 {[%emt 0:02:28]} 17. Nxe6 {[%emt 0:00:56]} fxe6 {[%emt 0:
00:00]} 18. Qxe6+ {[%emt 0:00:28]} Kd8 {[%emt 0:00:31]} 19. Bf5 {[%emt 0:00:06]
} Bc6 {[%emt 0:02:43]} 20. bxc3 {[%emt 0:02:54]} Re8 {[%emt 0:14:59]} 21. Qf7 {
[%emt 0:00:29]} Re7 {[%emt 0:08:05]} 22. Qf8+ {[%emt 0:02:32]} Re8 {[%emt 0:00:
00]} 23. Qxg7 {[%emt 0:00:34]} Kc8 {[%emt 0:01:38]} 24. Rd6 {[%emt 0:00:06]}
Qxd6 {[%emt 0:06:13]} 25. exd6 {[%emt 0:00:43]} Rxe1+ {[%emt 0:00:11]} 26. Kb2
{[%emt 0:00:15]} Rd1 {[%emt 0:01:18]} 27. Qe7 {[%emt 0:00:26]} Rf1 {[%emt 0:00:
00]} 28. Be4 {[%emt 0:00:32]} Bxe4 {[%emt 0:08:20]} 29. Qe8+ {[%emt 0:00:46]}
1-0

[Event "44th Chess Olympiad Open 2022"]
[Site "Chennai"]
[Date "2022.08.07"]
[Round "9.59"]
[White "Njoroge, Martin"]
[Black "Madol Garang Panthoum"]
[Result "1/2-1/2"]
[WhiteElo "1973"]
[BlackElo "1985"]
[Annotator "NA"]
[PlyCount "107"]
[EventDate "2022.??.??"]
[TimeControl "60"]

1. d4 {[%emt 0:05:31]} Nf6 {[%emt 0:00:46]} 2. c4 {[%emt 0:02:24]} e6 {[%emt 0:
00:00]} 3. Nf3 {[%emt 0:00:15]} d5 {[%emt 0:00:12]} 4. Bf4 {[%emt 0:01:45]} Be7
{[%emt 0:02:15]} 5. Nc3 {[%emt 0:09:13]} O-O {[%emt 0:00:56]} 6. Rc1 {[%emt 0:
00:00]} c6 {[%emt 0:01:24]} 7. e3 {[%emt 0:01:18]} Nh5 {[%emt 0:07:30]} 8. Be5
{[%emt 0:01:29]} Nd7 {[%emt 0:01:16]} 9. Bd3 {[%emt 0:00:41]} f5 {[%emt 0:00:
00]} 10. O-O {[%emt 0:02:23]} g6 {[%emt 0:02:39]} 11. Qb3 {[%emt 0:03:52]} Nhf6
{[%emt 0:08:19]} 12. Bf4 {[%emt 0:01:58]} Ne4 {[%emt 0:01:20]} 13. cxd5 {
[%emt 0:05:34]} exd5 {[%emt 0:07:30]} 14. Nxe4 {[%emt 0:01:03]} fxe4 {[%emt 0:
00:00]} 15. Bxe4 {[%emt 0:00:15]} a5 {[%emt 0:06:43]} 16. Bd3 {[%emt 0:02:30]}
Nf6 {[%emt 0:04:32]} 17. Ne5 {[%emt 0:02:29]} Kg7 {[%emt 0:02:40]} 18. Qc2 {
[%emt 0:05:14]} Qe8 {[%emt 0:00:37]} 19. Bg5 {[%emt 0:01:45]} Ng4 {[%emt 0:00:
00]} 20. Bxg6 {[%emt 0:03:50]} hxg6 {[%emt 0:04:18]} 21. Bxe7 {[%emt 0:00:23]}
Rh8 {[%emt 0:01:12]} 22. Bg5 {[%emt 0:15:52]} Nxh2 {[%emt 0:03:19]} 23. Rfe1 {
[%emt 0:00:43]} Ng4 {[%emt 0:02:09]} 24. Bf4 {[%emt 0:04:35]} Rh7 {[%emt 0:00:
00]} 25. Nxg4 {[%emt 0:03:43]} Bxg4 {[%emt 0:00:05]} 26. e4 {[%emt 0:00:12]}
Qf7 {[%emt 0:06:47]} 27. Be5+ {[%emt 0:01:47]} Kg8 {[%emt 0:00:06]} 28. exd5 {
[%emt 0:00:30]} Bf5 {[%emt 0:01:03]} 29. Qc5 {[%emt 0:02:35]} Qxd5 {[%emt 0:00:
00]} 30. Qxd5+ {[%emt 0:00:43]} cxd5 {[%emt 0:00:03]} 31. Rc5 {[%emt 0:00:40]}
Rd7 {[%emt 0:00:43]} 32. Rec1 {[%emt 0:00:33]} a4 {[%emt 0:01:50]} 33. Rc8+ {
[%emt 0:01:24]} Rxc8 {[%emt 0:00:51]} 34. Rxc8+ {[%emt 0:00:39]} Kf7 {[%emt 0:
00:00]} 35. Kh2 {[%emt 0:00:36]} Bb1 {[%emt 0:02:45]} 36. a3 {[%emt 0:00:20]}
Ke6 {[%emt 0:02:31]} 37. Kg3 {[%emt 0:02:29]} Rf7 {[%emt 0:02:59]} 38. Rd8 {
[%emt 0:03:12]} Rd7 {[%emt 0:00:26]} 39. Ra8 {[%emt 0:01:06]} Bc2 {[%emt 0:00:
00]} 40. Kg4 {[%emt 0:00:23]} Rh7 {[%emt 0:01:55]} 41. Re8+ {[%emt 0:31:35]}
Kd7 {[%emt 0:34:08]} 42. Rf8 {[%emt 0:00:55]} Ke7 {[%emt 0:00:19]} 43. Rf6 {
[%emt 0:01:44]} Rf7 {[%emt 0:01:18]} 44. Rd6 {[%emt 0:01:16]} Rxf2 {[%emt 0:00:
00]} 45. Rb6 {[%emt 0:01:39]} Rxg2+ {[%emt 0:01:14]} 46. Kh3 {[%emt 0:00:39]}
Re2 {[%emt 0:00:42]} 47. Rxb7+ {[%emt 0:00:24]} Ke6 {[%emt 0:02:49]} 48. Kg4 {
[%emt 0:03:26]} Rg2+ {[%emt 0:07:46]} 49. Kh3 {[%emt 0:01:36]} Rg5 {[%emt 0:00:
00]} 50. Rc7 {[%emt 0:02:45]} Bb3 {[%emt 0:00:00]} 51. Bg3 {[%emt 0:00:00]} Kf5
{[%emt 0:00:00]} 52. Re7 {[%emt 0:00:00]} Rh5+ {[%emt 0:00:00]} 53. Kg2 {
[%emt 0:00:00]} Kg4 {[%emt 0:00:00]} 54. Rf7 {[%emt 0:00:00]} 1/2-1/2